bitfinex/quotes_ETHUSD_20240630
["timestamp","ask_amount","ask_price","bid_price","bid_amount"]
[1719782063790,0.836,3419.4,3419.2,0.1191546]
[1719782064313,0.836,3419.4,3419.3,0.05504648]
[1719782064623,2.51614017,3420.1,3419.3,0.05504648]
[1719782064783,2.51614017,3420.1,3419.4,0.55]
[1719782064784,0.836,3419.9,3419.4,0.55]
[1719782065087,0.836,3419.7,3419.4,0.60499877]
[1719782066054,0.836,3419.9,3419.4,0.60499877]
[1719782066284,0.05704017,3419.8,3419.4,0.78920271]
[1719782066789,0.05704017,3420.1,3419.4,0.78920271]
[1719782066986,0.05704017,3420.1,3419.5,0.05848603]
[1719782067187,0.05704017,3420.4,3419.6,0.55]
[1719782067390,0.836,3420.3,3419.8,1.0594]
[1719782067590,3.0,3420.9,3419.8,1.0594]
[1719782067591,7.32,3421.2,3419.9,3.53247531]
[1719782067893,0.836,3421.0,3420.0,3.75992]
[1719782068090,0.836,3421.0,3420.1,0.66306692]
[1719782068276,0.836,3421.0,3420.2,0.73470269]
[1719782068459,0.836,3421.0,3420.3,0.60450513]
[1719782068958,0.836,3421.1,3420.3,0.66297156]
[1719782069291,0.05704017,3421.0,3420.3,0.66297156]
[1719782070599,3.05704017,3421.2,3420.3,0.66297156]
[1719782070806,3.60295017,3421.2,3420.3,0.66297156]
[1719782070989,3.60295017,3421.2,3420.3,0.60450513]
[1719782078523,3.60295017,3421.2,3420.3,0.05450513]
[1719782078917,3.60295017,3421.2,3419.8,1.0594]
[1719782079074,0.80760502,3421.1,3419.8,1.0594]
[1719782079281,0.05704017,3421.0,3419.8,1.0594]
[1719782079476,0.05704017,3421.0,3419.9,0.05454255]
[1719782079870,0.05704017,3421.0,3420.0,0.55]
[1719782080425,0.05704017,3421.0,3420.1,0.09503442]
[1719782080722,0.05704017,3421.0,3420.2,1.6094]
[1719782081109,0.05704017,3421.0,3420.3,0.05435179]
[1719782082900,0.05704017,3421.1,3420.4,0.55]
[1719782083111,0.05704017,3421.1,3420.5,0.05425643]
[1719782083316,0.05704017,3421.5,3420.6,0.55]
[1719782083491,1.47978402,3421.4,3420.7,0.05416108]
[1719782083698,0.05704017,3421.3,3420.6,0.55]
[1719782083979,0.05704017,3421.3,3420.7,0.05414758]
[1719782084720,0.05704017,3421.3,3420.8,0.05409911]
[1719782085037,0.05704017,3421.3,3420.3,0.55]
[1719782085335,0.51072259,3421.3,3420.4,0.05428981]
[1719782085493,0.05704017,3421.2,3420.5,0.55]
[1719782085694,0.05704017,3421.2,3420.6,0.05419446]
[1719782089856,0.839,3421.0,3420.6,0.05419446]
[1719782093273,0.05704017,3420.9,3420.6,0.05419446]
[1719782093472,0.33784402,3420.8,3420.6,0.05419446]
[1719782093768,0.89604017,3420.9,3420.2,1.0594]
[1719782093968,0.89604017,3420.9,3420.7,0.05414282]
[1719782094130,0.05704017,3420.9,3420.3,0.55]
[1719782094334,0.839,3420.9,3420.4,0.05428585]
[1719782095173,0.05704017,3421.0,3420.4,0.05428585]
[1719782095352,0.89604017,3421.0,3420.4,0.05428585]
[1719782096275,0.05704017,3421.4,3420.4,0.27003285]
[1719782096498,0.839,3421.2,3420.5,0.55]
[1719782096668,0.05704017,3421.1,3420.5,0.55]
[1719782096840,0.05704017,3421.1,3420.6,0.05419049]
[1719782098577,0.05704017,3421.1,3420.7,1.0594]
[1719782098881,0.05704017,3421.1,3420.6,0.05419049]
[1719782098882,0.839,3420.8,3420.6,0.05419049]
[1719782099042,0.839,3420.8,3420.4,1.0594]
[1719782100085,0.839,3421.0,3420.4,1.0594]
[1719782100393,0.05704017,3420.9,3420.4,1.0594]
[1719782100610,0.05704017,3420.9,3420.4,1.457728]
[1719782101172,0.05704017,3421.0,3420.4,1.457728]
[1719782101370,0.05704017,3421.0,3420.4,1.0594]
[1719782102212,0.839,3420.8,3420.1,1.0594]
[1719782102369,0.839,3420.8,3420.2,0.55]
[1719782102557,0.05704017,3421.0,3420.2,3.47379]
[1719782103702,0.05704017,3421.0,3420.3,0.05394759]
[1719782103904,0.05704017,3421.0,3420.3,0.88895135]
[1719782104484,0.05704017,3421.0,3420.5,1.0594]
[1719782104799,0.05704017,3421.1,3420.6,0.05380455]
[1719782108820,7.32,3421.5,3420.6,0.05380455]
[1719782108821,7.32,3421.5,3420.7,0.05846671]
[1719782109108,3.3316,3421.9,3421.0,2.9231]
[1719782109263,0.05704017,3421.8,3421.0,3.75840967]
[1719782109469,0.05704017,3421.8,3421.1,0.0535662]
[1719782109670,0.89604017,3421.8,3421.1,0.0535662]
[1719782109978,0.839,3421.8,3421.2,1.0594]
[1719782110180,0.05704017,3421.9,3421.2,1.11291854]
[1719782111175,0.839,3421.8,3421.2,1.11291854]
[1719782111789,0.05704017,3421.7,3421.2,1.11291854]
[1719782115299,0.05704017,3421.9,3421.2,2.52758162]
[1719782116037,0.05704017,3421.9,3421.2,1.68858162]
[1719782116198,0.05704017,3421.9,3421.2,0.68858162]
[1719782117122,0.89604017,3421.9,3421.2,0.11291854]
[1719782118429,0.89604017,3421.9,3421.2,0.95191854]
[1719782118430,0.05704017,3421.9,3421.2,0.95191854]
[1719782118661,0.05704017,3421.9,3421.2,0.11291854]
[1719782118927,0.89604017,3421.9,3421.2,0.11291854]
[1719782119422,0.839,3421.9,3421.2,0.11291854]
[1719782119625,0.839,3421.9,3421.3,1.02565508]
[1719782119822,0.839,3421.9,3421.3,1.07907203]
[1719782120129,3.05704017,3422.0,3421.3,1.07907203]
[1719782120287,0.05704017,3422.0,3421.3,1.07907203]
[1719782124241,0.05704017,3422.0,3421.3,1.12541194]
[1719782124415,0.05704017,3422.1,3421.4,1.33367519]
[1719782124748,0.05704017,3422.1,3421.4,1.38704449]
[1719782125850,0.05704017,3422.1,3421.4,0.8923693]
[1719782126164,0.05704017,3422.1,3421.4,0.0533693]
[1719782128023,0.05704017,3422.1,3421.4,0.8923693]
[1719782128723,3.0,3422.2,3421.5,2.98113166]
[1719782128924,7.32,3422.5,3421.6,0.11265973]
[1719782128925,3.89604017,3422.4,3421.6,0.11265973]
[1719782129260,7.32,3422.5,3421.7,1.389]
[1719782129473,2.3018,3422.9,3421.9,0.839]
[1719782129975,0.839,3422.8,3421.9,0.839]
[1719782130203,0.05704017,3422.7,3422.0,0.05306916]
[1719782130496,0.67752319,3422.7,3422.0,0.05306916]
[1719782132276,0.839,3422.6,3422.0,0.05306916]
[1719782132499,0.05704017,3422.5,3421.8,0.0594]
[1719782132789,0.05704017,3422.5,3422.1,0.05302152]
[1719782132998,0.05704017,3422.5,3421.9,0.55]
[1719782133361,0.05704017,3422.5,3422.2,0.05297389]
[1719782133567,0.05704017,3422.5,3422.0,0.05306916]
[1719782133568,0.50869249,3422.5,3422.0,0.05306916]
[1719782133765,0.05704017,3422.5,3422.0,0.05306916]
[1719782135590,2.2861,3422.4,3421.5,0.839]
[1719782135765,0.05704017,3422.3,3421.6,1.1]
[1719782136087,0.05704017,3422.3,3421.7,0.05321208]
[1719782137069,0.05704017,3422.3,3421.8,0.0594]
[1719782137508,0.05704017,3422.5,3421.9,0.0530867]
[1719782137677,0.43730249,3422.5,3421.9,0.0530867]
[1719782140202,0.05704017,3422.5,3421.9,0.0530867]
[1719782141289,0.839,3422.7,3421.9,0.1124867]
[1719782141507,0.05704017,3422.6,3421.9,0.1124867]
[1719782141894,0.839,3422.5,3421.9,0.1124867]
[1719782142111,0.05704017,3422.4,3421.9,0.1124867]
[1719782144283,0.05704017,3422.4,3421.9,0.61572955]
[1719782146037,0.839,3422.7,3421.9,0.61572955]
[1719782146242,0.05704017,3422.6,3421.9,0.61572955]
[1719782146388,0.05704017,3422.6,3421.9,0.1124867]
[1719782146737,0.89604017,3422.7,3421.9,0.1124867]
[1719782147019,0.89604017,3422.7,3422.0,0.55]
[1719782147723,0.89604017,3422.7,3422.0,0.60293363]
[1719782148419,0.839,3422.7,3422.0,1.05116108]
[1719782148623,0.05704017,3422.6,3422.0,1.05116108]
[1719782149424,0.89604017,3422.8,3422.0,1.05116108]
[1719782150826,0.89604017,3422.8,3422.1,0.05843834]
[1719782150827,0.839,3422.8,3422.1,0.05843834]
[1719782151192,0.839,3422.8,3422.2,0.05283836]
[1719782151525,0.839,3422.8,3422.3,0.0594]
[1719782151928,0.839,3422.8,3422.4,0.05274311]
[1719782153119,3.0,3422.9,3422.4,0.05274311]
[1719782153313,3.0,3422.9,3422.5,0.55]
[1719782153709,3.0,3422.9,3422.6,0.05260429]
[1719782154085,3.0,3422.9,3422.5,0.55]
[1719782154287,3.0,3422.9,3422.4,0.55]
[1719782154521,3.0,3422.9,3422.6,0.05260429]
[1719782154725,3.0,3422.9,3422.5,0.05265191]
[1719782154904,3.0,3422.9,3422.4,0.55]
[1719782155224,3.0,3422.9,3422.5,0.05265191]
[1719782157034,3.84599,3423.0,3422.5,0.05265191]
[1719782157852,3.00699,3423.0,3422.5,0.05265191]
[1719782158021,3.84599,3423.0,3422.5,0.05265191]
[1719782158418,3.0,3422.9,3422.5,0.05265191]
[1719782160415,3.84599,3423.0,3422.5,0.05265191]
[1719782160617,3.00699,3423.0,3422.5,0.20859981]
[1719782165626,3.84599,3423.0,3422.5,0.20859981]
[1719782165860,0.839,3422.8,3422.5,0.05265191]
[1719782166046,0.05704017,3422.7,3422.5,0.05265191]
[1719782166225,0.05704017,3422.7,3422.0,0.0594]
[1719782166426,0.05704017,3422.7,3422.1,0.55]
[1719782166720,0.05704017,3422.7,3422.1,0.60278774]
[1719782168094,3.00699,3423.0,3422.3,0.0594]
[1719782168279,3.00699,3423.0,3422.4,0.55]
[1719782168478,3.00699,3423.0,3422.4,0.60263456]
[1719782173158,3.06403017,3423.0,3422.4,0.60263456]
[1719782175585,3.00699,3423.0,3422.4,1.44163456]
[1719782175792,3.00699,3423.0,3422.5,0.15594668]
[1719782176161,3.00699,3423.0,3422.6,0.04962759]
[1719782176361,3.00699,3423.0,3422.4,0.60843235]
[1719782176663,3.00699,3423.0,3422.5,0.04946259]
[1719782177111,3.84599,3423.0,3422.5,0.04946259]
[1719782183168,3.00699,3423.0,3422.5,0.04946259]
[1719782199475,3.00699,3423.0,3422.6,1.01726734]
[1719782199769,3.00699,3423.0,3422.5,0.04946259]
[1719782199927,3.00699,3423.0,3422.7,0.04934835]
[1719782200260,3.00699,3423.0,3422.8,0.04930073]
[1719782200858,3.00699,3423.0,3422.9,0.04925312]
[1719782201256,3.00699,3423.0,3422.4,1.22304738]
[1719782201572,3.00699,3423.0,3422.5,2.5431626]
[1719782201749,3.00699,3423.0,3422.6,1.01726504]
[1719782202079,3.00699,3423.0,3422.7,0.04934835]
[1719782202468,3.00699,3423.0,3422.4,1.22304738]
[1719782202776,3.00699,3423.0,3422.8,0.04930073]
[1719782202982,3.00699,3423.0,3422.4,1.22318421]
[1719782203137,3.00699,3423.0,3422.9,0.04925312]
[1719782203664,3.00699,3423.0,3422.4,1.22318421]
[1719782203859,3.00699,3423.0,3422.5,2.54317112]
[1719782204054,3.00699,3423.0,3422.6,1.01726845]
[1719782204378,3.00699,3423.0,3422.5,0.04944359]
[1719782204580,3.00699,3423.0,3422.7,0.04934202]
[1719782204874,3.00699,3423.0,3422.8,0.0492944]
[1719782205231,3.00699,3423.0,3422.4,1.22318421]
[1719782205438,3.00699,3423.0,3422.5,2.59260364]
[1719782205698,3.00699,3423.0,3422.5,0.04943726]
[1719782205984,3.00699,3423.0,3422.6,1.01726147]
[1719782206139,3.00699,3423.0,3422.5,0.04943726]
[1719782206341,3.00699,3423.0,3422.7,0.04934202]
[1719782206542,3.00699,3423.0,3422.6,0.04938963]
[1719782206852,3.00699,3423.0,3422.8,0.0492944]
[1719782207155,3.00699,3423.0,3422.7,0.04934202]
[1719782207355,3.00699,3423.0,3422.9,0.04924679]
[1719782207574,3.00699,3423.0,3422.8,0.0492944]
[1719782207771,3.00699,3423.0,3422.9,0.04924679]
[1719782208072,3.00699,3423.0,3422.4,1.93143313]
[1719782208281,3.00699,3423.0,3422.5,2.97921305]
[1719782208462,3.00699,3423.0,3422.6,1.01726681]
[1719782208671,3.00699,3423.0,3422.6,0.04938963]
[1719782212543,2.466,3422.9,3422.6,0.04938963]
[1719782212968,2.466,3422.9,3422.4,0.60843235]
[1719782213171,2.466,3422.9,3422.7,0.04934202]
[1719782213369,2.466,3422.9,3422.4,0.55]
[1719782213629,2.466,3422.9,3422.8,0.0492944]
[1719782213912,2.466,3422.9,3422.4,0.55]
[1719782214068,2.466,3422.9,3422.5,2.54322078]
[1719782214265,3.15423917,3422.9,3422.5,0.04944279]
[1719782214474,3.3355,3422.6,3422.5,0.04944279]
[1719782214711,3.3355,3422.6,3421.9,0.85256814]
[1719782214932,3.3355,3422.6,3422.5,0.04800058]
[1719782215123,3.73787392,3422.6,3422.0,0.55]
[1719782215410,3.3355,3422.6,3422.5,0.04800058]
[1719782215583,3.3355,3422.6,3422.0,0.55]
[1719782215979,3.3355,3422.6,3422.1,0.04819109]
[1719782217692,0.839,3422.2,3422.1,0.04819109]
[1719782217879,3.62778402,3422.2,3422.1,0.04819109]
[1719782218089,3.62778402,3422.2,3421.9,0.23777144]
[1719782218090,3.2928,3422.2,3421.9,0.23777144]
[1719782218304,0.05704017,3422.1,3421.9,0.23777144]
[1719782219917,0.05704017,3422.1,3422.0,0.04679309]
[1719782220439,2.4538,3422.0,3421.5,0.839]
[1719782220587,0.05704017,3422.1,3420.3,0.61391523]
[1719782220588,2.4538,3421.5,3420.3,0.61391523]
[1719782220772,2.4538,3421.5,3420.1,1.20794235]
[1719782220773,3.2928,3420.5,3419.8,0.61391523]
[1719782220973,3.2928,3420.5,3419.5,0.839]
[1719782220974,0.05704017,3420.4,3419.5,0.839]
[1719782221174,0.05704017,3420.4,3419.6,0.22922042]
[1719782221580,0.05704017,3420.4,3419.5,0.839]
[1719782223376,0.05704017,3420.4,3419.6,0.55]
[1719782226020,0.839,3420.3,3419.6,0.55]
[1719782226195,0.05704017,3420.2,3419.3,1.389]
[1719782227080,0.05704017,3420.2,3419.5,0.839]
[1719782227276,0.05704017,3420.3,3419.6,0.55]
[1719782228191,0.05704017,3420.3,3419.7,0.04078946]
[1719782228390,0.39202419,3420.3,3419.7,0.04078946]
[1719782228578,0.839,3419.9,3419.7,0.04078946]
[1719782228774,0.05704017,3419.8,3419.2,0.1191546]
[1719782229414,0.839,3419.4,3419.2,0.1191546]
[1719782229718,2.4434,3419.3,3419.2,0.1191546]
[1719782230391,2.82868017,3419.3,3419.2,0.1191546]
[1719782231495,3.66768017,3419.3,3419.2,0.1191546]
[1719782233227,2.82868017,3419.3,3419.2,0.1191546]
[1719782233522,3.66768017,3419.3,3419.2,0.1191546]
[1719782233828,2.4119,3419.2,3417.9,0.839]
[1719782234022,0.839,3418.8,3417.9,0.839]
[1719782234189,0.05704017,3418.7,3418.0,0.03931599]
[1719782234387,0.05704017,3418.7,3417.9,0.839]
[1719782235102,0.05704017,3418.7,3418.0,0.55]
[1719782235304,0.28482073,3418.8,3418.0,0.55]
[1719782235519,0.28482073,3418.8,3418.0,1.389]
[1719782235710,0.28482073,3418.8,3418.1,0.03926824]
[1719782236085,5.77866802,3419.2,3418.2,0.839]
[1719782236290,5.77866802,3419.2,3418.4,0.839]
[1719782236535,6.61766802,3419.2,3418.4,0.839]
[1719782236722,6.61766802,3419.2,3418.5,0.03907728]
[1719782236932,6.61766802,3419.2,3418.4,0.839]
[1719782237311,5.77866802,3419.2,3418.4,0.839]
[1719782237496,2.4119,3419.2,3418.7,0.839]
[1719782237695,2.4119,3419.2,3418.2,0.14867729]
[1719782237923,2.4119,3419.2,3418.8,0.03893409]
[1719782238235,0.839,3418.9,3418.0,0.55]
[1719782238555,0.839,3418.7,3418.1,0.03813436]
[1719782239188,2.4974,3418.6,3417.9,0.55]
[1719782239360,1.08874,3418.5,3418.2,0.03808662]
[1719782239567,2.89416141,3418.6,3417.8,0.839]
[1719782239794,2.89416141,3418.6,3417.2,3.93946]
[1719782240097,2.89416141,3418.6,3417.3,0.55]
[1719782240254,2.89416141,3418.6,3417.3,0.58851641]
[1719782241196,2.4974,3418.6,3417.5,2.017]
[1719782241404,2.4974,3418.6,3417.6,1.10582917]
[1719782241551,2.4974,3418.6,3417.6,1.20271013]
[1719782243150,0.86757366,3418.6,3417.6,1.20271013]
[1719782243353,0.86757366,3418.6,3417.6,4.12873013]
[1719782243552,0.86757366,3418.6,3417.7,0.61457301]
[1719782243871,0.86757366,3418.6,3417.8,0.64678544]
[1719782244806,2.017,3418.6,3417.8,0.03827761]
[1719782245120,0.86194165,3418.5,3417.3,0.0585216]
[1719782245264,3.0,3418.7,3417.9,0.03489228]
[1719782245466,3.0,3418.7,3417.3,0.0585216]
[1719782245467,5.017,3419.4,3417.3,0.0585216]
[1719782245663,0.55264429,3419.3,3417.4,0.5353554]
[1719782245867,3.96912581,3419.3,3417.4,0.5353554]
[1719782246182,3.96912581,3419.3,3417.4,0.03516724]
[1719782246183,2.4688,3418.2,3417.4,0.03516724]
[1719782246749,5.4688,3418.2,3416.5,3.21614611]
[1719782246887,2.4688,3418.2,3416.6,1.01891883]
[1719782247091,3.0,3418.1,3416.6,0.03554946]
[1719782247327,2.4688,3418.2,3416.7,1.40463004]
[1719782247328,5.4688,3418.2,3416.7,1.40463004]
[1719782247511,5.4688,3418.2,3416.8,0.0585195]
[1719782247684,5.4688,3418.2,3416.8,0.09397339]
[1719782248131,5.4688,3418.2,3416.8,3.02064339]
[1719782248132,2.4688,3418.2,3416.8,3.02064339]
[1719782248331,2.4688,3418.2,3416.9,0.74758393]
[1719782248638,2.4688,3418.2,3417.0,4.00389492]
[1719782248814,2.4688,3418.2,3417.1,2.54698446]
[1719782248815,0.29544984,3418.2,3417.1,2.54698446]
[1719782249022,0.29544984,3418.2,3417.2,1.62735149]
[1719782249228,3.0,3419.0,3417.3,0.05851199]
[1719782249430,0.54501482,3418.9,3417.4,0.55]
[1719782249638,3.0,3419.0,3417.4,0.03525296]
[1719782249926,2.45014819,3419.1,3417.4,0.03525296]
[1719782250471,2.45014819,3419.1,3417.3,0.55]
[1719782250634,2.45014819,3419.1,3417.5,0.0352052]
[1719782250839,0.24501482,3419.0,3417.4,0.03525296]
[1719782251018,3.24501482,3419.0,3417.6,0.03515744]
[1719782251340,3.24501482,3419.0,3417.7,0.03510968]
[1719782251508,3.24501482,3419.0,3417.2,1.52814503]
[1719782251831,2.4614,3418.9,3417.8,0.03506192]
[1719782252049,5.4614,3418.9,3417.3,0.85558466]
[1719782252252,5.4614,3418.9,3417.9,0.03501417]
[1719782252550,5.4614,3418.9,3418.0,0.03496642]
[1719782253037,5.4614,3418.9,3417.4,0.55]
[1719782253237,0.8156563,3418.8,3417.4,0.55]
[1719782253454,3.8156563,3418.8,3417.5,0.0352052]
[1719782253800,3.0,3418.8,3417.5,0.09372048]
[1719782253999,5.4614,3418.9,3417.6,1.01872098]
[1719782254206,5.4614,3418.9,3417.5,0.69911142]
[1719782254405,5.4614,3418.9,3417.7,0.03508687]
[1719782254655,5.4614,3418.9,3417.8,0.31903631]
[1719782254656,6.2770563,3418.9,3417.8,0.31903631]
[1719782254856,6.2770563,3418.9,3417.8,0.03503911]
[1719782256158,5.19040376,3418.9,3417.8,0.03503911]
[1719782256356,2.19040376,3418.9,3417.8,0.03503911]
[1719782256656,1.37474746,3418.9,3417.8,0.03503911]
[1719782257167,7.32,3419.5,3417.9,3.94439582]
[1719782257365,7.32,3419.5,3417.8,0.69894019]
[1719782257366,7.32,3419.5,3418.3,0.60539094]
[1719782257510,7.32,3419.5,3418.4,2.54633211]
[1719782257711,7.32,3419.5,3418.5,2.95231306]
[1719782257976,7.32,3419.5,3418.5,0.44069923]
[1719782258150,7.32,3419.5,3418.5,0.03471828]
[1719782258468,7.32,3419.5,3418.6,1.01853699]
[1719782258469,3.0,3419.4,3418.6,1.01853699]
[1719782258651,3.0,3419.4,3418.6,0.03464381]
[1719782258814,3.0,3419.4,3418.4,0.60539094]
[1719782259018,4.032,3419.4,3418.5,2.54633671]
[1719782259248,2.3245,3419.3,3418.6,2.54633671]
[1719782259451,2.3245,3419.3,3418.7,1.01853468]
[1719782259633,2.3245,3419.3,3418.7,0.03458821]
[1719782259835,2.3245,3419.3,3418.3,0.60539094]
[1719782260153,3.16185,3419.3,3418.4,3.15188914]
[1719782260312,3.0,3419.2,3418.5,2.5464982]
[1719782260513,3.0,3419.2,3418.4,0.64012235]
[1719782260709,3.0,3419.2,3418.6,0.03463594]
[1719782260948,3.0,3419.2,3418.5,0.03468368]
[1719782261253,2.3245,3419.8,3418.7,0.03458821]
[1719782261451,4.3035,3419.8,3419.1,0.60913575]
[1719782261614,4.3035,3419.8,3419.2,2.54612213]
[1719782261827,4.3035,3419.8,3419.3,1.01844885]
[1719782262026,4.3035,3419.8,3419.2,0.03435511]
[1719782262347,2.40935,3419.7,3419.3,2.58034796]
[1719782262561,2.40935,3419.7,3419.3,0.03430739]
[1719782262735,5.40935,3419.7,3419.4,1.01841604]
[1719782262930,5.40935,3419.7,3419.1,0.60913575]
[1719782263155,3.0,3419.7,3419.3,0.60913575]
[1719782263458,2.3245,3419.8,3419.4,2.58029093]
[1719782263632,2.3245,3419.8,3419.5,1.0184125]
[1719782263834,2.3245,3419.8,3419.4,0.03425968]
[1719782264159,2.3245,3419.8,3419.5,2.54603234]
[1719782264360,0.23245,3419.7,3418.5,0.55]
[1719782264572,3.23245,3419.7,3419.6,0.03416427]
[1719782264771,3.23245,3419.7,3419.3,0.61102006]
[1719782264956,3.23245,3419.7,3419.6,0.03416427]
[1719782265258,3.23245,3419.7,3419.6,1.01841728]
[1719782265662,3.23245,3419.7,3419.6,2.58020224]
[1719782265960,3.23245,3419.7,3419.6,1.05258155]
[1719782266167,7.65498402,3420.3,3419.6,1.05258155]
[1719782266168,2.346,3420.2,3419.6,1.05258155]
[1719782266335,2.346,3420.2,3419.6,0.03416427]
[1719782266669,2.346,3420.2,3419.7,2.54593226]
[1719782266966,2.346,3421.0,3420.1,0.91653009]
[1719782267166,2.346,3421.0,3420.2,2.54558059]
[1719782267367,2.346,3421.0,3420.2,0.03261744]
[1719782267550,2.346,3421.0,3420.3,1.01813033]
[1719782267868,0.2346,3420.9,3420.1,0.61160484]
[1719782268169,0.2346,3420.9,3420.2,1.05076763]
[1719782268325,3.2346,3420.9,3420.2,0.03261744]
[1719782268526,0.2346,3420.9,3420.3,1.01808369]
[1719782268774,0.2346,3420.9,3420.4,2.54514133]
[1719782268975,0.25806,3420.8,3420.5,1.01806301]
[1719782269143,0.25806,3420.8,3420.5,0.03244296]
[1719782269358,0.25806,3420.8,3420.1,0.61160484]
[1719782269571,0.25806,3420.8,3420.6,0.03238035]
[1719782269777,0.25806,3420.8,3420.1,0.61160484]
[1719782269977,0.25806,3420.8,3420.7,0.03233268]
[1719782270178,0.25806,3420.8,3420.0,0.61160484]
[1719782270378,0.25806,3420.8,3420.7,0.03233268]
[1719782270579,0.25806,3420.8,3420.0,0.61160484]
[1719782270892,0.25806,3420.8,3420.7,0.03233268]
[1719782271084,0.25806,3420.8,3420.0,0.61160484]
[1719782271284,0.560406,3420.7,3420.1,1.05066474]
[1719782271584,0.560406,3420.7,3420.1,0.03261877]
[1719782271951,0.560406,3420.7,3419.8,0.55]
[1719782272150,0.560406,3420.7,3420.2,0.03257108]
[1719782272347,0.560406,3420.7,3419.7,0.55]
[1719782272570,0.3818466,3420.6,3420.3,0.03252339]
[1719782272778,0.3818466,3420.6,3419.7,0.57570932]
[1719782273019,0.3818466,3420.6,3420.4,0.03247571]
[1719782273152,0.3818466,3420.6,3419.7,0.55]
[1719782273366,0.3818466,3420.6,3420.5,0.03242803]
[1719782273591,0.3818466,3420.6,3419.6,0.55]
[1719782273890,0.3818466,3420.6,3419.7,1.01808253]
[1719782274086,0.3818466,3420.6,3419.8,0.55]
[1719782274490,0.3818466,3420.6,3419.9,0.03271415]
[1719782274699,0.3818466,3420.6,3419.8,0.55]
[1719782275188,0.3818466,3420.6,3419.9,0.03271415]
[1719782275589,0.3818466,3420.6,3419.7,0.55]
[1719782275755,0.3818466,3420.6,3420.0,0.03266646]
[1719782275958,0.3818466,3420.6,3419.7,0.55]
[1719782276272,0.3818466,3420.6,3414.5,4.07480645]
[1719782276273,0.3818466,3420.6,3419.2,2.4895]
[1719782276673,2.49,3420.5,3419.3,0.03298781]
[1719782276895,0.34322526,3420.4,3419.3,0.03298781]
[1719782278073,0.34322526,3420.4,3419.3,0.58298781]
[1719782278770,0.34322526,3420.4,3419.3,0.03298781]
[1719782278972,3.34322526,3420.4,3418.7,2.55177309]
[1719782279175,3.34322526,3420.4,3419.4,0.0328764]
[1719782279176,0.62150719,3420.3,3419.4,0.0328764]
[1719782279361,3.62150719,3420.3,3419.4,0.0328764]
[1719782279568,3.62150719,3420.3,3418.8,0.74939331]
[1719782279783,0.62150719,3420.3,3419.5,0.0328287]
[1719782279984,0.64547325,3420.2,3418.8,3.67438331]
[1719782280163,0.64547325,3420.2,3419.6,0.03279042]
[1719782280363,0.64547325,3420.2,3418.9,0.55]
[1719782280996,0.64547325,3420.2,3419.0,0.03307669]
[1719782285688,2.3055,3420.1,3419.0,0.03307669]
[1719782285888,0.29509732,3420.0,3419.0,0.03307669]
[1719782286200,2.3055,3419.9,3419.0,0.03307669]
[1719782286765,2.3055,3419.9,3419.1,0.03303369]
[1719782287005,2.3055,3419.9,3418.4,2.2695]
[1719782287197,2.3055,3419.9,3419.2,0.03299383]
[1719782287389,2.3055,3419.9,3418.5,0.55]
[1719782287390,0.26005973,3419.8,3418.5,0.55]
[1719782287592,2.2838,3419.7,3419.3,0.03300665]
[1719782287793,2.2838,3419.7,3418.5,0.55]
[1719782288505,2.2838,3419.7,3418.6,0.03334463]
[1719782288802,5.2838,3419.7,3418.6,0.03334463]
[1719782289005,0.55438597,3419.6,3418.1,2.3563]
[1719782289301,0.55438597,3419.6,3418.7,0.0332969]
[1719782289481,0.55438597,3419.6,3418.2,0.55]
[1719782289681,0.55438597,3419.6,3418.8,0.03324917]
[1719782289883,0.55438597,3419.6,3418.2,0.55]
[1719782290080,0.60982457,3419.5,3418.2,1.77323699]
[1719782290280,0.60982457,3419.5,3418.3,0.03348784]
[1719782295616,2.3259,3419.4,3418.3,0.03348784]
[1719782299243,2.3259,3419.4,3418.4,2.017]
[1719782299519,2.3259,3419.4,3418.5,0.60849771]
[1719782299824,2.3259,3419.4,3418.6,0.55843856]
[1719782300037,2.3259,3419.4,3418.6,0.59182799]
[1719782300499,2.3259,3419.4,3418.6,0.03338943]
[1719782305020,2.3259,3419.4,3418.6,0.09188591]
[1719782305212,2.3259,3419.4,3418.7,0.55]
[1719782305415,2.3259,3419.4,3418.7,0.5833417]
[1719782306312,2.3259,3419.4,3418.7,0.0333417]
[1719782306494,2.3259,3419.4,3418.8,0.05849134]
[1719782306696,2.3259,3419.4,3418.9,0.55]
[1719782306916,2.3259,3419.4,3418.9,0.58324625]
[1719782307585,3.0,3420.3,3418.9,0.58324625]
[1719782307586,2.4905,3420.2,3419.0,0.05849254]
[1719782308244,2.4905,3420.2,3419.1,0.03315081]
[1719782310572,2.4905,3420.2,3419.1,0.02867192]
[1719782310855,0.40564819,3420.1,3419.1,0.02867192]
[1719782311024,2.4905,3420.0,3419.1,0.02867192]
[1719782311362,2.4905,3419.8,3419.1,0.02867192]
[1719782311561,2.4905,3419.8,3418.1,2.4803]
[1719782311727,2.4905,3419.8,3419.2,0.03206035]
[1719782311922,2.4905,3419.8,3418.1,2.4803]
[1719782312122,2.4905,3419.8,3418.2,0.03253764]
[1719782312322,2.4104,3419.6,3418.2,0.03253764]
[1719782313245,3.0,3419.6,3418.2,0.58253764]
[1719782313450,2.4104,3419.5,3418.2,0.58253764]
[1719782313821,2.4104,3419.5,3418.2,0.03253764]
[1719782314236,2.4104,3419.5,3417.8,3.572696]
[1719782314436,2.4104,3419.3,3418.3,0.03250248]
[1719782314636,5.4104,3419.3,3417.8,2.4009]
[1719782314847,2.4104,3419.3,3418.4,0.03245474]
[1719782315074,2.4104,3419.3,3417.8,2.4009]
[1719782315363,2.4104,3419.3,3417.9,0.55]
[1719782315566,2.65144,3419.2,3417.9,0.58269896]
[1719782315760,3.0,3419.1,3417.9,0.58269896]
[1719782315967,2.4104,3419.0,3417.9,0.58269896]
[1719782318933,2.4104,3419.0,3418.0,2.017]
[1719782319137,2.4104,3419.0,3418.1,0.58264198]
[1719782319943,2.4104,3419.0,3418.1,1.08269618]
[1719782321951,2.4104,3419.0,3418.1,4.00829618]
[1719782322352,2.4104,3419.0,3418.2,0.0347088]
[1719782322553,2.4104,3419.0,3418.4,2.017]